[Event "Tatry Open 2018"]
[Site "Tatranska Lomnica"]
[Date "2018.10.01"]
[Round "2"]
[White "Weber, Samuel"]
[Black "Zylka, Stanislaw"]
[Result "1/2-1/2"]
[ECO "A06"]
[WhiteElo "2141"]
[BlackElo "2327"]
[Annotator "NA"]
[PlyCount "156"]
[EventDate "2018.09.30"]
[EventType "swiss"]
[EventCountry "SVK"]
[SourceTitle "playchess.com"]
[Source "ChessBase"]
[SourceQuality "1"]
[TimeControl "40/5400+30:1800+30"]

{[%evp 44,127,164,130,119,101,168,12,56,27,51,0,0,0,27,-6,0,0,67,42,35,0,0,-17,-9,-36,-37,-115,-35,-37,-12,-22,-7,-8,-15,-20,-11,-47,-39,-45,-32,-46,-50,-61,-43,-44,-42,-46,-42,-44,-58,-43,-43,-43,-65,-49,-44,-62,-43,-49,-43,-62,-43,-49,0,-43,-43,-49,-62,-43,-49,-43,0,-62,0,-43,-43,-52,-49,32767,32767,-48,-49,-43,-48,-49]} 1. Nf3 {[%emt 0:00:00]} d5 {[%emt 0:00:00]} 2. g3 {[%emt 0:01:07]} Nf6 {[%emt 0:00:01]} 3. Bg2 {[%emt 0:01:50]} g6 {[%emt 0:00:19]} 4. O-O {[%emt 0:01:10]} Bg7 {[%emt 0:00:07]} 5. d3 {[%emt 0:00:47]} O-O {[%emt 0:00:21]} 6. Nbd2 {[%emt 0:00:33]} Nc6 {[%emt 0:01:03]} 7. e4 {[%emt 0:02:16]} e5 {[%emt 0:01:03]} 8. c3 {[%emt 0:01:07]} Re8 {[%emt 0:01:12]} 9. Re1 {[%emt 0:02:41]} h6 {[%emt 0:01:14]} 10. a4 {[%emt 0:02:43]} a5 {[%emt 0:00:23]} 11. exd5 {[%emt 0:02:37]} Nxd5 {[%emt 0:00:39]} 12. Nc4 {[%emt 0:00:37]} Bf5 {[%emt 0:06:05]} 13. Nh4 $146 {[%emt 0:17:56] A07: Réti Opening: New York and Capablanca Systems} ({Predecessor:} 13. h3 Nb6 14. Nxb6 cxb6 15. Be3 Bxd3 16. Bxb6 Qxb6 17. Qxd3 Qxb2 18. Rab1 e4 19. Rxe4 Qxc3 20. Rxe8+ Rxe8 21. Qxc3 Bxc3 22. Rxb7 Ne5 23. Nxe5 Rxe5 24. Bf1 {½-½ (26) Kramnik,V (2783)-Anand,V (2797) Zuerich 2015}) 13... Be6 {[%emt 0:00:22]} 14. Be3 {[%emt 0:02:04]} Qd7 {[%emt 0:02:05]} 15. Qb3 {[%emt 0:04:10]} b6 {[%emt 0:06:03]} 16. Rad1 {[%emt 0:04:32]} Rad8 {[%emt 0:08:46]} 17. Nf3 {[%emt 0:04:39]} Nxe3 {[%emt 0:10:54]} 18. Rxe3 {[%emt 0:02:36]} Bd5 {[%emt 0:00:56]} 19. Qb5 {[%emt 0:02:25]} f6 {[%emt 0:02:21]} 20. d4 {[%emt 0:09:11]} e4 {[%emt 0:02:19]} 21. Nfd2 {[%emt 0:02:20]} f5 {[%emt 0:00:54]} 22. f3 {[%emt 0:04:00] [#]} Qc8 $2 {[%emt 0:33:39]} (22... Nxd4 $1 $11 {[%mdl 512] and Black has nothing to worry.} 23. Qxd7 (23. cxd4 Bc6) 23... Rxd7 24. cxd4 Bxd4 25. Nxe4 Bxe4 26. fxe4 Bxe3+ 27. Nxe3 Rxd1+ 28. Nxd1 fxe4) 23. fxe4 {[%emt 0:03:19]} Bxd4 {[%emt 0:01:11]} 24. exd5 {[%emt 0:03:33]} Rxe3 {[%emt 0:00:19] [#]} (24... Na7 $16 {was necessary.} 25. Qxe8+ Rxe8 26. cxd4 Rxe3 27. Nxe3 Qe8) 25. Nxe3 {[%emt 0:00:21]} ({White must play} 25. Kh1 $1 $16 Na7 26. Qb3) 25... Bxe3+ {[%emt 0:00:07]} 26. Kh1 {[%emt 0:01:06]} Ne5 {[%emt 0:01:09]} 27. Nc4 {[%emt 0:01:34]} Nxc4 {[%emt 0:00:22]} 28. Qxc4 {[%emt 0:00:02]} Kg7 {[%emt 0:07:07]} 29. Re1 {[%emt 0:01:35]} Bc5 {[%emt 0:00:34]} 30. b4 {[%emt 0:00:33]} axb4 {[%emt 0:00:09]} (30... Bd6 $11) 31. cxb4 {[%emt 0:00:02]} Bd6 {[%emt 0:00:15]} 32. Qd4+ {[%emt 0:00:39]} Kh7 {[%emt 0:00:22]} 33. Re6 {[%emt 0:04:22]} Qd7 {[%emt 0:01:31]} 34. b5 {[%emt 0:06:48]} Qg7 {[%emt 0:00:38]} 35. Qxg7+ $1 {[%emt 0:03:53]} Kxg7 {[%emt 0:00:07]} 36. Bf3 {[%emt 0:00:05]} Ra8 {[%emt 0:01:34]} 37. Bd1 {[%emt 0:00:46]} h5 {[%emt 0:00:20]} 38. Kg2 {[%emt 0:01:10]} Kf7 {[%emt 0:00:58]} 39. Bc2 {[%emt 0:01:54]} Re8 {[%emt 0:01:21]} 40. Rxe8 {[%emt 0:00:29]} Kxe8 {[%emt 0:00:05]} 41. Kf3 {[%emt 0:30:31]} Kf7 {[%emt 0:30:14]} 42. h3 {[%emt 0:00:23]} Kf6 {[%emt 0:00:08]} 43. Kg2 {[%emt 0:06:13]} Kg5 {[%emt 0:02:27]} 44. h4+ {[%emt 0:00:00]} Kf6 {[%emt 0:00:00]} 45. Kf3 {[%emt 0:00:00]} Ke5 {[%emt 0:00:00]} 46. Bb3 {[%emt 0:00:00]} Kd4 {[%emt 0:00:00]} 47. Bc2 {[%emt 0:00:00]} Kc3 {[%emt 0:00:00]} 48. Bd1 $1 {[%emt 0:00:00]} Kb2 {[%emt 0:00:00]} 49. Be2 {[%emt 0:00:00]} Kc2 {[%emt 0:00:00]} 50. Bc4 {[%emt 0:00:00]} Kd2 {[%emt 0:00:00]} 51. Bb3 {[%emt 0:00:00]} Kc1 {[%emt 0:00:00]} 52. Bc4 {[%emt 0:00:00]} Kc2 {[%emt 0:00:00]} 53. Be2 {[%emt 0:00:00]} Kc3 {[%emt 0:00:00]} 54. Bd1 {[%emt 0:00:00]} Kc4 {[%emt 0:00:00]} 55. Bc2 {[%emt 0:00:00]} Kd4 {[%emt 0:00:00]} 56. Bd1 {[%emt 0:00:00]} Kd3 {[%emt 0:00:00]} 57. Be2+ {[%emt 0:00:00]} Kc3 {[%emt 0:00:00]} 58. Bd1 {[%emt 0:00:00]} Kc4 {[%emt 0:00:00]} 59. Bc2 {[%emt 0:00:00]} Kxd5 {[%emt 0:00:00]} 60. Bb3+ {[%emt 0:00:00]} Ke5 {[%emt 0:00:00]} 61. Bf7 {[%emt 0:00:00]} Kf6 {[%emt 0:00:00]} 62. Be8 {[%emt 0:00:00]} Bb4 {[%emt 0:00:00]} 63. Bc6 {[%emt 0:00:00]} Bd2 {[%emt 0:00:00]} 64. Be8 $15 {[%emt 0:00:00]} f4 {[%emt 0:00:00]} 65. g4 {[%emt 0:00:00]} hxg4+ {[%emt 0:00:00]} 66. Kxg4 {[%emt 0:00:00]} Be1 {[%emt 0:00:00]} 67. h5 {[%emt 0:00:43]} gxh5+ {[%emt 0:00:00]} 68. Bxh5 {[%emt 0:00:17]} Ke5 {[%emt 0:00:00]} 69. Kf3 {[%emt 0:00:05]} Bb4 {[%emt 0:00:00]} 70. Be8 {[%emt 0:00:05]} Bd6 {[%emt 0:00:00]} 71. Bc6 {[%emt 0:00:11]} Kd4 {[%emt 0:00:00]} 72. Kg4 {[%emt 0:01:30]} Ke3 {[%emt 0:00:00]} 73. Bf3 {[%emt 0:00:43]} Kf2 {[%emt 0:00:00]} 74. Bc6 {[%emt 0:00:12]} Ke2 {[%emt 0:00:00]} 75. Bf3+ {[%emt 0:00:05]} Kd2 {[%emt 0:00:00]} 76. Bc6 {[%emt 0:00:18]} Kc3 {[%emt 0:00:00]} 77. Bf3 {[%emt 0:00:14]} Kb4 {[%emt 0:00:00]} 78. Bd1 {[%emt 0:00:23]} Ka3 {[%emt 0:00:15]} 1/2-1/2

[Event "Tatry Open 2018"]
[Site "Tatranska Lomnica"]
[Date "2018.10.01"]
[Round "2"]
[White "Kolesar, Milan"]
[Black "Malik, Jan"]
[Result "1/2-1/2"]
[ECO "D10"]
[WhiteElo "2133"]
[BlackElo "2300"]
[Annotator "ChessBase"]
[PlyCount "50"]
[EventDate "2018.09.30"]
[EventType "swiss"]
[EventCountry "SVK"]
[SourceTitle "playchess.com"]
[Source "ChessBase"]
[SourceQuality "1"]
[TimeControl "40/5400+30:1800+30"]

1. Nf3 {[%emt 0:00:00]} d5 {[%emt 0:00:00]} 2. d4 {[%emt 0:00:00]} Nf6 {[%emt 0:00:14]} 3. c4 {[%emt 0:00:00]} c6 {[%emt 0:00:20]} 4. cxd5 {[%emt 0:00:14]} cxd5 {[%emt 0:00:05]} 5. Nc3 {[%emt 0:00:08]} Nc6 {[%emt 0:00:07]} 6. Bf4 {[%emt 0:00:11]} a6 {[%emt 0:00:54]} 7. e3 {[%emt 0:00:10]} Bf5 {[%emt 0:00:14]} 8. Ne5 {[%emt 0:00:27]} Rc8 {[%emt 0:07:20]} 9. Qb3 {[%emt 0:09:17]} b5 {[%emt 0:15:33]} 10. Nxc6 {[%emt 0:24:41]} Rxc6 {[%emt 0:00:48]} 11. Be2 {[%emt 0:00:51]} Ne4 {[%emt 0:15:57]} 12. Bd3 {[%emt 0:28:38]} Qa5 {[%emt 0:14:57]} 13. Bxe4 {[%emt 0:00:50]} dxe4 {[%emt 0:02:44]} 14. O-O {[%emt 0:03:55]} e6 {[%emt 0:03:10]} 15. a3 {[%emt 0:07:04]} Be7 {[%emt 0:01:26]} 16. Rac1 {[%emt 0:02:52]} Rc4 {[%emt 0:03:16]} 17. Ne2 {[%emt 0:02:35]} Rxc1 {[%emt 0:00:23]} 18. Rxc1 {[%emt 0:00:16]} O-O {[%emt 0:00:11]} 19. h3 {[%emt 0:03:56]} Bg6 {[%emt 0:04:06]} 20. Ng3 {[%emt 0:01:21]} h5 {[%emt 0:02:03]} 21. Bc7 {[%emt 0:03:17]} Qa4 {[%emt 0:00:45]} 22. Qxa4 {[%emt 0:00:09]} bxa4 {[%emt 0:00:07]} 23. Ne2 {[%emt 0:01:59]} f6 {[%emt 0:01:56]} 24. Bg3 {[%emt 0:01:45]} Be8 {[%emt 0:07:10]} 25. Rc7 {[%emt 0:01:49]} Bd8 {[%emt 0:03:54]} 1/2-1/2

[Event "Tatry Open 2018"]
[Site "Tatranska Lomnica"]
[Date "2018.10.01"]
[Round "2"]
[White "Janos, Ivan"]
[Black "Kostolansky, Sebastian Lukas"]
[Result "0-1"]
[ECO "C02"]
[WhiteElo "2109"]
[BlackElo "2209"]
[Annotator "ChessBase"]
[PlyCount "60"]
[EventDate "2018.09.30"]
[EventType "swiss"]
[EventCountry "SVK"]
[SourceTitle "playchess.com"]
[Source "ChessBase"]
[SourceQuality "1"]
[TimeControl "40/5400+30:1800+30"]

1. e4 {[%emt 0:00:00]} e6 {[%emt 0:01:46]} 2. d4 {[%emt 0:00:00]} d5 {[%emt 0:00:06]} 3. e5 {[%emt 0:01:11]} c5 {[%emt 0:00:15]} 4. c3 {[%emt 0:00:19]} Nc6 5. Nf3 {[%emt 0:00:19]} Qb6 {[%emt 0:02:24]} 6. a3 {[%emt 0:00:36]} a5 {[%emt 0:03:03]} 7. Bd3 {[%emt 0:03:24]} Nh6 {[%emt 0:02:39]} 8. O-O {[%emt 0:11:36]} Nf5 {[%emt 0:18:06]} 9. dxc5 {[%emt 0:07:33]} Bxc5 {[%emt 0:00:37]} 10. Nbd2 {[%emt 0:11:41]} O-O {[%emt 0:23:34]} 11. b4 {[%emt 0:01:54]} axb4 {[%emt 0:01:00]} 12. cxb4 {[%emt 0:00:07]} Bd4 {[%emt 0:02:47]} 13. Nxd4 {[%emt 0:00:56]} Qxd4 {[%emt 0:01:26]} 14. Nb3 {[%emt 0:01:21]} Qxe5 {[%emt 0:00:29]} 15. Rb1 {[%emt 0:08:39]} Nh4 {[%emt 0:11:11]} 16. f4 {[%emt 0:02:20]} Qf6 {[%emt 0:00:45]} 17. Bb2 {[%emt 0:09:46]} Qh6 {[%emt 0:05:27]} 18. Rc1 {[%emt 0:06:08]} e5 {[%emt 0:07:25]} 19. fxe5 {[%emt 0:00:05]} Nxe5 {[%emt 0:00:17]} 20. Qe2 {[%emt 0:09:03]} Nxd3 {[%emt 0:05:19]} 21. Qxd3 {[%emt 0:00:06]} Bf5 {[%emt 0:00:40]} 22. Qg3 {[%emt 0:07:21]} Be4 {[%emt 0:02:05]} 23. Nc5 {[%emt 0:01:25]} Bxg2 {[%emt 0:03:21]} 24. Rf6 {[%emt 0:00:38]} Ng6 {[%emt 0:01:01]} 25. Rxg6 {[%emt 0:07:56]} fxg6 {[%emt 0:00:07]} 26. Qxg2 {[%emt 0:00:14]} Qe3+ {[%emt 0:00:08]} 27. Kh1 {[%emt 0:00:13]} Rf2 {[%emt 0:03:15]} 28. Qxd5+ {[%emt 0:00:35]} Kh8 {[%emt 0:00:06]} 29. Rd1 {[%emt 0:00:31]} Raf8 {[%emt 0:00:53]} 30. Qe5 {[%emt 0:05:37]} Qf3+ {Qd5 Qe3 Qd3 Qe8 Bd4 Qc6+ Qe4} 0-1

[Event "Tatry Open 2018"]
[Site "Tatranska Lomnica"]
[Date "2018.10.01"]
[Round "2"]
[White "Bochnickova, Andrea"]
[Black "Mrvova, Alena"]
[Result "1-0"]
[ECO "B28"]
[WhiteElo "2079"]
[BlackElo "2200"]
[Annotator "NA"]
[PlyCount "121"]
[EventDate "2018.09.30"]
[EventType "swiss"]
[EventCountry "SVK"]
[SourceTitle "playchess.com"]
[Source "ChessBase"]
[SourceQuality "1"]
[TimeControl "40/5400+30:1800+30"]

{[%evp 37,99,204,187,204,196,32767,191,215,202,192,166,168,211,218,241,34,241,331,346,335,334,341,316,164,169,166,225,179,251,268,275,280,279,149,262,269,232,236,254,255,285,147,141,146,158,156,266,157,163,189,240,189,183,247,209,234,177,0,5,8,0,0,0,0]} 1. e4 {[%emt 0:00:00]} c5 {[%emt 0:02:42]} 2. Nf3 {[%emt 0:00:00]} a6 {[%emt 0:01:18]} 3. c4 {[%emt 0:00:30]} g6 {[%emt 0:01:27]} 4. d4 {[%emt 0:00:47]} Bg7 {[%emt 0:00:51]} 5. Nc3 {[%emt 0:03:15]} cxd4 {[%emt 0:05:33]} 6. Nxd4 {[%emt 0:00:18]} Nc6 {[%emt 0:01:13]} 7. Be3 {[%emt 0:02:25]} d6 {[%emt 0:02:31]} 8. Be2 {[%emt 0:01:18]} Nf6 {[%emt 0:01:03]} 9. f3 {[%emt 0:04:33]} h5 {[%emt 0:10:11]} 10. Qd2 {[%emt 0:07:02]} Ne5 {[%emt 0:01:42] B38: Sicilian: Maroczy Bind with 5...Bg7 and 7...0-0} (10... Bd7 11. O-O h4 12. Rac1 Nh5 13. Nd5 e6 14. Nxc6 Bxc6 15. Bb6 Bh6 16. Qc3 Bg7 17. Qe3 Bh6 18. Qf2 {1-0 (34) Kasparov,S (2450)-Schneider,J (1893) Arco 2017}) 11. O-O {[%emt 0:03:30]} O-O {[%emt 0:02:02]} 12. Rfc1 $146 {[%emt 0:01:04]} ({Predecessor:} 12. h3 Bd7 13. f4 Nc6 14. Bf3 Rc8 15. b3 Qa5 16. Rad1 Rfe8 17. Nxc6 Bxc6 18. Nd5 Qxd2 19. Rxd2 Bxd5 20. exd5 {½-½ (66) Ilenko,A (1939)-Anastasiev,V (2046) Kemerovo 2011}) 12... e6 {[%emt 0:08:19]} 13. Kh1 {[%emt 0:16:32]} Bd7 {[%emt 0:08:01]} 14. Rc2 {[%emt 0:06:37]} Rc8 {[%emt 0:02:45]} 15. b3 {[%emt 0:00:52]} Bc6 {[%emt 0:02:25]} 16. Rd1 {[%emt 0:07:37]} Nh7 {[%emt 0:01:19]} 17. Nxc6 {[%emt 0:05:37]} Rxc6 {[%emt 0:01:58]} 18. c5 {[%emt 0:06:52]} Qb8 {[%emt 0:00:30]} 19. f4 {[%emt 0:02:40]} ({Don't take} 19. cxd6 $6 Rd8 $14) 19... dxc5 {[%emt 0:00:16]} 20. fxe5 {[%emt 0:02:30]} Bxe5 {[%emt 0:00:08]} 21. g3 {[%emt 0:04:17]} Rd6 {[%emt 0:01:06]} 22. Qe1 {[%emt 0:01:56]} Bd4 {[%emt 0:00:17]} 23. Bf4 {[%emt 0:03:02]} e5 {[%emt 0:00:09]} 24. Bh6 {[%emt 0:01:30]} Rfd8 {[%emt 0:00:18]} 25. Nd5 {[%emt 0:01:03]} R8d7 {[%emt 0:02:53]} 26. Be3 $2 {[%emt 0:04:27]} (26. h4 $18) 26... b5 $2 {[%emt 0:05:47]} (26... Rxd5 $1 $14 27. exd5 Bxe3) 27. Bxd4 {[%emt 0:01:37]} cxd4 {[%emt 0:00:08]} 28. Rdc1 {[%emt 0:04:33]} Kg7 {[%emt 0:00:35]} 29. Rc8 {[%emt 0:01:24]} Qb7 {[%emt 0:00:09]} 30. R1c7 {[%emt 0:00:33]} (30. Bf3 $142) 30... Rxc7 {[%emt 0:00:05]} 31. Rxc7 {[%emt 0:00:03]} Qb8 {[%emt 0:00:08]} 32. Qc1 {[%emt 0:00:43]} Nf6 {[%emt 0:02:33]} 33. Nxf6 {[%emt 0:01:55]} ({Don't do} 33. Rc8 $6 Qb7 $18) 33... Rxf6 {[%emt 0:00:04]} 34. Kg2 {[%emt 0:02:12]} Qb6 {[%emt 0:02:08]} 35. Bd3 {[%emt 0:01:31]} Qe6 {[%emt 0:01:36]} (35... h4 $16 {is a better defense.} 36. Qc2 (36. gxh4 Rf4 $14) 36... Qe6) 36. Qg5 {[%emt 0:02:23]} Qd6 {[%emt 0:01:02]} 37. Rc2 {[%emt 0:00:14]} Re6 {[%emt 0:00:56]} 38. Qd2 {[%emt 0:00:29]} Re7 {[%emt 0:00:48]} 39. b4 {[%emt 0:00:37]} Qe6 {[%emt 0:02:19]} 40. Rc5 {[%emt 0:00:52]} h4 {[%emt 0:00:08]} 41. Be2 {[%emt 0:22:00]} Rd7 {[%emt 0:22:02]} (41... hxg3 $16 42. Kxg3 (42. hxg3 Re8 $16) 42... Qd6) 42. g4 {[%emt 0:01:30]} Qe7 {[%emt 0:06:45]} 43. Bd1 {[%emt 0:00:34]} Rd6 {[%emt 0:07:00]} 44. Bb3 {[%emt 0:01:30]} Rf6 {[%emt 0:00:11]} 45. h3 {[%emt 0:03:15]} Rf4 {[%emt 0:00:21]} 46. Qe2 {[%emt 0:02:49]} Qg5 {[%emt 0:02:20]} 47. Rd5 $2 {[%emt 0:00:27]} ({White should play} 47. Bd5 $18) 47... Rf6 {[%emt 0:00:28]} 48. Qe1 {[%emt 0:01:48]} Qf4 {[%emt 0:00:59]} 49. Bd1 {[%emt 0:00:03]} Rc6 {[%emt 0:02:56]} 50. Qf2 $11 {[%emt 0:00:32]} Qc1 {[%emt 0:03:54]} 51. Qf1 {[%emt 0:00:44]} Qd2+ {[%emt 0:02:36]} 52. Qe2 {[%emt 0:00:35]} Qf4 {[%emt 0:00:24]} 53. Qf3 {[%emt 0:00:18]} Qg5 {[%emt 0:00:37]} 54. Rc5 {[%emt 0:00:23]} Rf6 {[%emt 0:00:04]} 55. Qd3 {[%emt 0:00:16]} Rf4 {[%emt 0:03:38]} 56. Rc6 {[%emt 0:00:41]} Qe7 {[%emt 0:00:15]} 57. a3 {[%emt 0:00:11]} Qb7 {[%emt 0:00:11]} 58. Qc2 {[%emt 0:00:39]} d3 {[%emt 0:00:07]} 59. Qc5 {[%emt 0:00:11]} Rxe4 {[%emt 0:00:19]} 60. Bf3 {[%emt 0:00:14]} Re1 {[%emt 0:00:55]} 61. Rxg6+ {[%emt 0:00:37]} 1-0

[Event "Tatry Open 2018"]
[Site "Tatranska Lomnica"]
[Date "2018.10.01"]
[Round "2"]
[White "Kolman, Richard"]
[Black "Borsos, Bogdan"]
[Result "0-1"]
[ECO "D02"]
[WhiteElo "2016"]
[BlackElo "2266"]
[Annotator "ChessBase"]
[PlyCount "46"]
[EventDate "2018.09.30"]
[EventType "swiss"]
[EventCountry "SVK"]
[SourceTitle "playchess.com"]
[Source "ChessBase"]
[SourceQuality "1"]
[TimeControl "40/5400+30:1800+30"]

1. d4 {[%emt 0:00:00]} d5 {[%emt 0:00:00]} 2. Nf3 {[%emt 0:00:00]} c5 {[%emt 0:00:00]} 3. c3 {[%emt 0:00:51]} e6 {[%emt 0:00:00]} 4. Bf4 {[%emt 0:00:38]} Nf6 {[%emt 0:00:03]} 5. e3 {[%emt 0:01:21]} Bd6 {[%emt 0:00:07]} 6. Bg3 {[%emt 0:04:54]} O-O {[%emt 0:00:09]} 7. Nbd2 {[%emt 0:00:40]} Nc6 {[%emt 0:00:28]} 8. Bd3 {[%emt 0:01:25]} b6 {[%emt 0:00:18]} 9. Ne5 {[%emt 0:09:44]} Bb7 {[%emt 0:00:28]} 10. f4 {[%emt 0:00:34]} Ne7 {[%emt 0:00:13]} 11. Bh4 {[%emt 0:02:53]} Ne4 {[%emt 0:06:22]} 12. Qc2 {[%emt 0:22:42]} f6 {[%emt 0:01:09]} 13. Bxe4 {[%emt 0:01:14]} dxe4 {[%emt 0:00:16]} 14. Nec4 {[%emt 0:00:06]} cxd4 {[%emt 0:06:17]} 15. Nxe4 {[%emt 0:07:19]} Bc7 {[%emt 0:06:12]} 16. cxd4 {[%emt 0:11:52]} Rc8 {[%emt 0:01:34]} 17. Nc3 {[%emt 0:03:03]} Bxf4 {[%emt 0:02:25]} 18. Qb3 {[%emt 0:08:26]} Bh6 {[%emt 0:06:19]} 19. Nd2 {[%emt 0:07:09]} Qd7 {[%emt 0:01:45]} 20. Bf2 {[%emt 0:01:18]} Nd5 {[%emt 0:03:22]} 21. Nd1 {[%emt 0:12:30]} Qc6 {[%emt 0:02:59]} 22. Nf3 {[%emt 0:00:30]} Ba6 {[%emt 0:00:53]} 23. Qa3 {[%emt 0:01:30]} Qb5 {[%emt 0:00:58]} 0-1

[Event "Tatry Open 2018"]
[Site "Tatranska Lomnica"]
[Date "2018.10.01"]
[Round "3"]
[White "Borsos, Bogdan"]
[Black "Kolesar, Milan"]
[Result "0-1"]
[ECO "A05"]
[WhiteElo "2266"]
[BlackElo "2133"]
[Annotator "ChessBase"]
[PlyCount "120"]
[EventDate "2018.09.30"]
[EventType "swiss"]
[EventCountry "SVK"]
[SourceTitle "playchess.com"]
[Source "ChessBase"]
[SourceQuality "1"]
[TimeControl "40/5400+30:1800+30"]

1. Nf3 {[%emt 0:00:00]} Nf6 {[%emt 0:00:00]} 2. c4 {[%emt 0:00:00]} c6 {[%emt 0:00:00]} 3. g3 {[%emt 0:00:00]} d5 {[%emt 0:00:00]} 4. Bg2 {[%emt 0:00:50]} Bf5 {[%emt 0:00:23]} 5. O-O {[%emt 0:00:16]} e6 {[%emt 0:00:12]} 6. d3 {[%emt 0:00:10]} h6 {[%emt 0:00:09]} 7. Be3 {[%emt 0:00:18]} Be7 {[%emt 0:03:17]} 8. Qb3 {[%emt 0:00:11]} Qc8 {[%emt 0:00:43]} 9. Nc3 {[%emt 0:01:00]} Nbd7 {[%emt 0:03:15]} 10. Rac1 {[%emt 0:02:01]} dxc4 {[%emt 0:03:58]} 11. Qxc4 {[%emt 0:00:24]} O-O {[%emt 0:01:35]} 12. Nd4 {[%emt 0:01:30]} Bg4 {[%emt 0:02:29]} 13. h3 {[%emt 0:00:27]} Bh5 {[%emt 0:01:11]} 14. b4 {[%emt 0:11:05]} a6 {[%emt 0:15:21]} 15. Qb3 {[%emt 0:01:47]} Qd8 {[%emt 0:01:45]} 16. g4 {[%emt 0:11:00]} Bg6 {[%emt 0:00:46]} 17. Na4 {[%emt 0:00:43]} Nd5 {[%emt 0:04:26]} 18. Bd2 {[%emt 0:04:34]} Bd6 {[%emt 0:03:38]} 19. Nc5 {[%emt 0:01:27]} Rb8 {[%emt 0:07:01]} 20. f4 {[%emt 0:14:17]} Qe7 {[%emt 0:02:22]} 21. Nxa6 {[%emt 0:12:21]} Ra8 {[%emt 0:05:41]} 22. Nc5 {[%emt 0:05:45]} Nxc5 {[%emt 0:00:44]} 23. bxc5 {[%emt 0:00:07]} Bxc5 {[%emt 0:00:17]} 24. Qc4 {[%emt 0:00:20]} Bxd4+ {[%emt 0:07:24]} 25. Qxd4 {[%emt 0:00:06]} Rxa2 {[%emt 0:00:16]} 26. Rfd1 {[%emt 0:00:16]} Rd8 {[%emt 0:04:16]} 27. Qc4 {[%emt 0:05:57]} Rda8 {[%emt 0:02:59]} 28. Rc2 {[%emt 0:01:05]} Rxc2 {[%emt 0:01:44]} 29. Qxc2 {[%emt 0:00:07]} f5 {[%emt 0:01:48]} 30. e4 {[%emt 0:01:38]} Nf6 {[%emt 0:03:36]} 31. Bf3 {[%emt 0:04:04]} Qa3 {[%emt 0:02:18]} 32. Kg2 {[%emt 0:01:55]} Qa4 {[%emt 0:01:34]} 33. Qxa4 {[%emt 0:06:02]} Rxa4 {[%emt 0:00:15]} 34. Bc3 {[%emt 0:08:03]} fxe4 {[%emt 0:02:28]} 35. dxe4 {[%emt 0:00:06]} Bxe4 {[%emt 0:00:46]} 36. Rd8+ {[%emt 0:00:54]} Kf7 {[%emt 0:00:45]} 37. Bxe4 {[%emt 0:00:23]} Rxe4 {[%emt 0:02:01]} 38. Kf3 {[%emt 0:00:28]} Rc4 {[%emt 0:00:32]} 39. Be5 {[%emt 0:00:19]} b5 {[%emt 0:01:27]} 40. h4 {[%emt 0:00:26]} b4 {[%emt 0:04:45]} 41. h5 {[%emt 0:31:23]} Rc1 {[%emt 0:36:58]} 42. Bd6 {[%emt 0:00:22]} Rc3+ {[%emt 0:05:13]} 43. Ke2 {[%emt 0:02:35]} g6 {[%emt 0:00:00]} 44. Rf8+ {[%emt 0:00:00]} Kg7 {[%emt 0:00:00]} 45. Rb8 {[%emt 0:00:00]} Nxg4 {[%emt 0:00:00]} 46. Rxb4 {[%emt 0:00:00]} gxh5 {[%emt 0:00:00]} 47. f5 {[%emt 0:00:00]} Kf6 {[%emt 0:00:00]} 48. fxe6 {[%emt 0:00:00]} Kxe6 {[%emt 0:00:00]} 49. Bf8 {[%emt 0:00:00]} Kd5 {[%emt 0:00:00]} 50. Rf4 {[%emt 0:00:00]} Rc2+ {[%emt 0:00:00]} 51. Kd3 {[%emt 0:00:00]} Rf2 {[%emt 0:00:00]} 52. Bxh6 {[%emt 0:00:00]} Rxf4 {[%emt 0:00:00]} 53. Bxf4 {[%emt 0:00:00]} h4 {[%emt 0:00:47]} 54. Ke2 {[%emt 0:00:00]} Ke4 {[%emt 0:00:09]} 55. Bd6 {[%emt 0:00:00]} h3 {[%emt 0:01:01]} 56. Kf1 {[%emt 0:00:00]} Kd5 {[%emt 0:00:26]} 57. Ba3 {[%emt 0:00:00]} c5 {[%emt 0:00:16]} 58. Bc1 {[%emt 0:00:00]} Ke4 {[%emt 0:00:19]} 59. Kg1 {[%emt 0:00:00]} c4 {[%emt 0:00:06]} 60. Bb2 {[%emt 0:00:00] Ke5} Kd3 {[%emt 0:00:07]} 0-1

[Event "Tatry Open 2018"]
[Site "Tatranska Lomnica"]
[Date "2018.10.01"]
[Round "3"]
[White "Michalicka, Milan"]
[Black "Dzikowski, Michal"]
[Result "1/2-1/2"]
[ECO "E01"]
[WhiteElo "2225"]
[BlackElo "2126"]
[Annotator "RC"]
[PlyCount "84"]
[EventDate "2018.09.30"]
[EventType "swiss"]
[EventCountry "SVK"]
[SourceTitle "playchess.com"]
[Source "ChessBase"]
[SourceQuality "1"]
[TimeControl "40/5400+30:1800+30"]

1. d4 {[%emt 0:00:00]} Nf6 {[%emt 0:00:00]} 2. c4 {[%emt 0:00:00]} e6 {[%emt 0:00:00]} 3. g3 {[%emt 0:00:00]} d5 {[%emt 0:00:00]} 4. Bg2 {[%emt 0:00:15]} Bb4+ {[%emt 0:00:31]} 5. Bd2 {[%emt 0:00:25]} Be7 {[%emt 0:00:28]} 6. Nf3 {[%emt 0:00:20]} O-O {[%emt 0:00:11]} 7. O-O {[%emt 0:00:21]} c6 {[%emt 0:00:18]} 8. Qc2 {[%emt 0:00:49]} Nbd7 {[%emt 0:00:30]} 9. Bf4 {[%emt 0:00:51]} b6 {[%emt 0:01:32]} 10. Rd1 {[%emt 0:04:03]} Bb7 {[%emt 0:02:23]} 11. Ne5 {[%emt 0:03:08]} Nh5 {[%emt 0:04:31]} 12. Bc1 {[%emt 0:04:09]} f5 {[%emt 0:02:29]} 13. cxd5 {[%emt 0:09:36]} cxd5 {[%emt 0:00:40]} 14. Nc6 {[%emt 0:00:16]} Qe8 {[%emt 0:06:21]} 15. Nxe7+ {[%emt 0:00:23]} Qxe7 {[%emt 0:00:05]} 16. Nc3 {[%emt 0:02:41]} a6 {[%emt 0:02:32]} 17. Qd2 {[%emt 0:03:55]} Qf7 {[%emt 0:05:23]} 18. Bf3 {[%emt 0:08:54]} Rac8 {[%emt 0:03:44]} 19. Qg5 {[%emt 0:01:48]} Nhf6 {[%emt 0:00:51]} 20. h4 {[%emt 0:02:37]} Ne4 {[%emt 0:03:12]} 21. Bxe4 {[%emt 0:03:40]} fxe4 {[%emt 0:00:47]} 22. Rf1 {[%emt 0:02:57]} h6 {[%emt 0:02:11]} 23. Qf4 {[%emt 0:02:52]} e5 {[%emt 0:06:46]} 24. Qxf7+ {[%emt 0:00:46]} Rxf7 {[%emt 0:03:49]} 25. Be3 {[%emt 0:00:18]} b5 {[%emt 0:02:43]} 26. Rfc1 {[%emt 0:04:13]} exd4 {[%emt 0:00:42]} 27. Bxd4 {[%emt 0:00:11]} Nf8 {[%emt 0:00:45]} 28. e3 {[%emt 0:03:06]} Ne6 {[%emt 0:01:09]} 29. Ne2 {[%emt 0:05:44]} Rfc7 {[%emt 0:01:08]} 30. Be5 {[%emt 0:01:46]} Rc4 {[%emt 0:11:33]} 31. Rxc4 {[%emt 0:03:50]} dxc4 {[%emt 0:07:18]} 32. Rd1 {[%emt 0:01:10]} Rd8 {[%emt 0:01:17]} 33. Rxd8+ {[%emt 0:00:59]} Nxd8 {[%emt 0:00:05]} 34. Kf1 {[%emt 0:00:32]} Ne6 {[%emt 0:00:32]} 35. Bd4 {[%emt 0:01:31]} g6 {[%emt 0:00:52]} 36. Ke1 {[%emt 0:00:20]} Kf7 {[%emt 0:01:53]} 37. Kd2 {[%emt 0:00:18]} Nc7 {[%emt 0:03:24]} 38. a3 {[%emt 0:07:24]} Nd5 {[%emt 0:01:39]} 39. Nc3 {[%emt 0:00:25]} Nxc3 {[%emt 0:05:21]} 40. Kxc3 {[%emt 0:00:09]} Ke6 {[%emt 0:00:08]} 41. Bg7 {[%emt 0:30:25]} h5 {[%emt 0:31:20]} 42. Kd4 {[%emt 0:00:22]} Kf5 {[%emt 0:02:41] Kxe4+ Ke5+} 1/2-1/2